[Event "*** Titled Tuesday Blitz"]
[Site "Chess.com"]
[Date "2020.02.04"]
[Round "1"]
[White "Azatic"]
[Black "SabinaFoisor"]
[Result "1-0"]
[WhiteElo "2635"]
[BlackElo "2254"]
[TimeControl "180+2"]
[EndTime "9:06:24 PST"]
[Termination "Azatic won by checkmate"]

1. e4 {[%clk 0:03:01.9]} 1... e5 {[%clk 0:02:58.4]} 2. Nf3 {[%clk 0:03:02.9]}
2... Nc6 {[%clk 0:02:57.7]} 3. Bb5 {[%clk 0:03:04.3]} 3... a6 {[%clk 0:02:57.5]}
4. Ba4 {[%clk 0:03:05.4]} 4... Nf6 {[%clk 0:02:57.6]} 5. O-O {[%clk 0:03:06.6]}
5... Be7 {[%clk 0:02:58.6]} 6. Re1 {[%clk 0:03:07.8]} 6... b5 {[%clk 0:02:59.8]}
7. Bb3 {[%clk 0:03:08.8]} 7... O-O {[%clk 0:03:00.9]} 8. d4 {[%clk 0:03:09.3]}
8... d6 {[%clk 0:02:54.4]} 9. c3 {[%clk 0:03:10.1]} 9... Bg4 {[%clk 0:02:53.7]}
10. Be3 {[%clk 0:03:10.9]} 10... exd4 {[%clk 0:02:37.5]} 11. cxd4 {[%clk
0:03:11.9]} 11... d5 {[%clk 0:02:38.3]} 12. e5 {[%clk 0:03:12.8]} 12... Ne4
{[%clk 0:02:32.7]} 13. Nc3 {[%clk 0:03:13.6]} 13... Nxc3 {[%clk 0:02:14]} 14.
bxc3 {[%clk 0:03:15.5]} 14... a5 {[%clk 0:02:15.2]} 15. a4 {[%clk 0:03:09.5]}
15... b4 {[%clk 0:02:10.1]} 16. c4 {[%clk 0:03:10.7]} 16... dxc4 {[%clk
0:01:48.1]} 17. Bxc4 {[%clk 0:03:12.6]} 17... Bxf3 {[%clk 0:01:49]} 18. gxf3
{[%clk 0:03:00.5]} 18... Bg5 {[%clk 0:01:48.9]} 19. f4 {[%clk 0:03:00.9]} 19...
Bh6 {[%clk 0:01:41.7]} 20. Kh1 {[%clk 0:02:44.8]} 20... Ne7 {[%clk 0:01:39]} 21.
Qg4 {[%clk 0:02:40.5]} 21... Qc8 {[%clk 0:01:35.8]} 22. e6 {[%clk 0:02:39.3]}
22... f5 {[%clk 0:01:21.2]} 23. Qg2 {[%clk 0:02:26.4]} 23... c6 {[%clk 0:01:13]}
24. d5 {[%clk 0:02:21.4]} 24... cxd5 {[%clk 0:01:13.1]} 25. Bxd5 {[%clk
0:02:23.3]} 25... Nxd5 {[%clk 0:01:02.1]} 26. Qxd5 {[%clk 0:02:25.2]} 26... Qd8
{[%clk 0:00:37.2]} 27. Qb3 {[%clk 0:02:15.9]} 27... Kh8 {[%clk 0:00:27]} 28. Bc5
{[%clk 0:02:13.5]} 28... Re8 {[%clk 0:00:21.3]} 29. e7 {[%clk 0:02:13.9]} 29...
Qc7 {[%clk 0:00:21.3]} 30. Rac1 {[%clk 0:02:13.1]} 30... Qxf4 {[%clk 0:00:21.1]}
31. Qd5 {[%clk 0:02:08.6]} 31... Qh4 {[%clk 0:00:21.4]} 32. Rc4 {[%clk
0:02:04.3]} 32... Bf4 {[%clk 0:00:17]} 33. Rxf4 {[%clk 0:01:59.2]} 33... Qxf4
{[%clk 0:00:18.9]} 34. Qxa8 {[%clk 0:02:00.4]} 34... Rxa8 {[%clk 0:00:15.9]} 35.
e8=Q+ {[%clk 0:02:02.3]} 35... Rxe8 {[%clk 0:00:16.1]} 36. Rxe8# {[%clk
0:02:04.2]} 1-0

[Event "*** Titled Tuesday Blitz"]
[Site "Chess.com"]
[Date "2020.02.04"]
[Round "1"]
[White "isla88"]
[Black "VincentKeymer"]
[Result "0-1"]
[WhiteElo "2296"]
[BlackElo "2686"]
[TimeControl "180+2"]
[EndTime "9:06:27 PST"]
[Termination "VincentKeymer won on time"]

1. c4 {[%clk 0:02:56.7]} 1... e6 {[%clk 0:03:00.3]} 2. Nc3 {[%clk 0:02:56.2]}
2... Nf6 {[%clk 0:02:59.5]} 3. e4 {[%clk 0:02:53.9]} 3... d6 {[%clk 0:02:59.8]}
4. d4 {[%clk 0:02:53.6]} 4... g6 {[%clk 0:02:58.9]} 5. Be2 {[%clk 0:02:50.5]}
5... Bg7 {[%clk 0:03:00.1]} 6. h4 {[%clk 0:02:50.9]} 6... c5 {[%clk 0:02:56.6]}
7. d5 {[%clk 0:02:49.9]} 7... exd5 {[%clk 0:02:54.7]} 8. cxd5 {[%clk 0:02:51]}
8... O-O {[%clk 0:02:50.4]} 9. h5 {[%clk 0:02:51.2]} 9... b5 {[%clk 0:02:32.2]}
10. hxg6 {[%clk 0:02:16.1]} 10... fxg6 {[%clk 0:02:32.3]} 11. Bxb5 {[%clk
0:01:32]} 11... Ba6 {[%clk 0:02:09.6]} 12. Bxa6 {[%clk 0:01:25.5]} 12... Nxa6
{[%clk 0:02:09.4]} 13. Nge2 {[%clk 0:01:25.6]} 13... c4 {[%clk 0:01:44.5]} 14.
Be3 {[%clk 0:01:21.7]} 14... Ng4 {[%clk 0:01:42.4]} 15. Bd4 {[%clk 0:01:09.3]}
15... Nc5 {[%clk 0:01:34.7]} 16. Bxc5 {[%clk 0:00:54.4]} 16... dxc5 {[%clk
0:01:36.6]} 17. Qd2 {[%clk 0:00:31.3]} 17... Nxf2 {[%clk 0:01:33.2]} 18. O-O
{[%clk 0:00:26.9]} 18... Qh4 {[%clk 0:01:25.4]} 19. d6 {[%clk 0:00:15.4]} 19...
Ng4 {[%clk 0:01:18]} 20. Rxf8+ {[%clk 0:00:10.9]} 20... Rxf8 {[%clk 0:01:17.1]}
21. Qd5+ {[%clk 0:00:12.5]} 21... Kh8 {[%clk 0:01:17.4]} 22. Nf4 {[%clk
0:00:04.6]} 22... Bd4+ {[%clk 0:01:12.8]} 0-1

[Event "*** Titled Tuesday Blitz"]
[Site "Chess.com"]
[Date "2020.02.04"]
[Round "1"]
[White "Reality-Stone"]
[Black "Indianlad"]
[Result "0-1"]
[WhiteElo "2499"]
[BlackElo "2895"]
[TimeControl "180+2"]
[EndTime "9:06:36 PST"]
[Termination "Indianlad won by resignation"]

1. d4 {[%clk 0:03:00.9]} 1... Nf6 {[%clk 0:03:01.2]} 2. c4 {[%clk 0:03:01.4]}
2... g6 {[%clk 0:03:02.5]} 3. Nc3 {[%clk 0:03:02.3]} 3... Bg7 {[%clk 0:03:04.1]}
4. e4 {[%clk 0:03:03.4]} 4... O-O {[%clk 0:03:05.5]} 5. h3 {[%clk 0:03:03.2]}
5... c5 {[%clk 0:03:05.4]} 6. d5 {[%clk 0:03:04]} 6... d6 {[%clk 0:03:05.3]} 7.
Be3 {[%clk 0:03:05.3]} 7... e6 {[%clk 0:03:06.4]} 8. Bd3 {[%clk 0:03:04.7]} 8...
Nbd7 {[%clk 0:03:07.4]} 9. Nf3 {[%clk 0:03:04.4]} 9... e5 {[%clk 0:03:08.7]} 10.
O-O {[%clk 0:03:05.3]} 10... Nh5 {[%clk 0:03:09.7]} 11. Be2 {[%clk 0:02:41.8]}
11... Nf4 {[%clk 0:03:09.5]} 12. Bxf4 {[%clk 0:02:41.9]} 12... exf4 {[%clk
0:03:10.5]} 13. Qd2 {[%clk 0:02:41.6]} 13... g5 {[%clk 0:03:11.6]} 14. a3 {[%clk
0:02:36.2]} 14... Ne5 {[%clk 0:03:12.7]} 15. Nxe5 {[%clk 0:02:32.7]} 15... Bxe5
{[%clk 0:03:14.6]} 16. Bg4 {[%clk 0:02:29.5]} 16... Bxg4 {[%clk 0:03:09.9]} 17.
hxg4 {[%clk 0:02:31.4]} 17... h5 {[%clk 0:03:07]} 18. gxh5 {[%clk 0:02:19.9]}
18... g4 {[%clk 0:03:07.9]} 19. g3 {[%clk 0:02:13.7]} 19... Qf6 {[%clk
0:02:53.6]} 20. f3 {[%clk 0:01:45]} 20... fxg3 {[%clk 0:02:54.4]} 21. fxg4
{[%clk 0:01:43.5]} 21... Qh4 {[%clk 0:02:55.8]} 22. Rad1 {[%clk 0:01:29.6]}
22... Rae8 {[%clk 0:02:37.9]} 23. Rf5 {[%clk 0:01:15]} 23... f6 {[%clk
0:02:30.5]} 24. g5 {[%clk 0:00:47.5]} 24... Bd4+ {[%clk 0:01:48.2]} 25. Kg2
{[%clk 0:00:46.2]} 25... Qh2+ {[%clk 0:01:49]} 26. Kf3 {[%clk 0:00:47.2]} 26...
Qxh5+ {[%clk 0:01:50.5]} 27. Kxg3 {[%clk 0:00:48.2]} 27... Bxc3 {[%clk
0:01:46.3]} 28. bxc3 {[%clk 0:00:27.4]} 28... Rxe4 {[%clk 0:01:47.4]} 29. Rf4
{[%clk 0:00:20.3]} 29... Rxf4 {[%clk 0:01:47.6]} 30. Qxf4 {[%clk 0:00:22.2]}
30... Qxd1 {[%clk 0:01:47]} 31. gxf6 {[%clk 0:00:23.6]} 31... Qd3+ {[%clk
0:01:44.9]} 32. Kh4 {[%clk 0:00:24.9]} 32... Qg6 {[%clk 0:01:44.3]} 0-1

[Event "*** Titled Tuesday Blitz"]
[Site "Chess.com"]
[Date "2020.02.04"]
[Round "1"]
[White "inegrepus"]
[Black "Snegokhod"]
[Result "0-1"]
[WhiteElo "2255"]
[BlackElo "2627"]
[TimeControl "180+2"]
[EndTime "9:06:38 PST"]
[Termination "Snegokhod won by resignation"]

1. d4 {[%clk 0:03:01.7]} 1... Nf6 {[%clk 0:02:59.7]} 2. c4 {[%clk 0:03:02.2]}
2... g6 {[%clk 0:03:00.3]} 3. Nc3 {[%clk 0:03:02.8]} 3... d5 {[%clk 0:03:00.9]}
4. Nf3 {[%clk 0:03:03.4]} 4... Bg7 {[%clk 0:03:00.8]} 5. Qb3 {[%clk 0:03:03.2]}
5... dxc4 {[%clk 0:03:01.3]} 6. Qxc4 {[%clk 0:03:05.1]} 6... O-O {[%clk
0:03:03]} 7. e4 {[%clk 0:03:06.3]} 7... c6 {[%clk 0:03:03.3]} 8. Be3 {[%clk
0:03:06.2]} 8... a5 {[%clk 0:03:03.5]} 9. Be2 {[%clk 0:03:04.9]} 9... a4 {[%clk
0:03:02.9]} 10. O-O {[%clk 0:03:03.6]} 10... Qa5 {[%clk 0:03:03.1]} 11. a3
{[%clk 0:02:58.5]} 11... Nbd7 {[%clk 0:02:54.6]} 12. Rfd1 {[%clk 0:02:56.8]}
12... Nb6 {[%clk 0:02:51.1]} 13. Qd3 {[%clk 0:02:57.5]} 13... Be6 {[%clk
0:02:51.5]} 14. Ng5 {[%clk 0:02:10]} 14... Bc4 {[%clk 0:02:45.6]} 15. Qd2 {[%clk
0:02:08.6]} 15... Rfd8 {[%clk 0:02:30.8]} 16. e5 {[%clk 0:02:03.9]} 16... Nfd5
{[%clk 0:02:24.4]} 17. e6 {[%clk 0:01:58.8]} 17... f6 {[%clk 0:02:12.2]} 18. Nf7
{[%clk 0:01:52.7]} 18... Nxc3 {[%clk 0:01:53.8]} 19. Bxc4 {[%clk 0:01:44.6]}
19... Nxc4 {[%clk 0:01:52.3]} 20. Qxc3 {[%clk 0:01:41.9]} 20... Qxc3 {[%clk
0:01:50.1]} 21. bxc3 {[%clk 0:01:41.6]} 21... Rd5 {[%clk 0:01:49.5]} 22. Bh6
{[%clk 0:01:10.5]} 22... Rb5 {[%clk 0:01:44.8]} 23. Rdb1 {[%clk 0:01:03.2]}
23... Rxb1+ {[%clk 0:01:44.1]} 24. Rxb1 {[%clk 0:01:03.7]} 24... Nxa3 {[%clk
0:01:42.5]} 25. Rxb7 {[%clk 0:01:01.7]} 25... Nb5 {[%clk 0:01:36.4]} 26. Bxg7
{[%clk 0:00:50.9]} 26... Kxg7 {[%clk 0:01:36.7]} 27. Rxe7 {[%clk 0:00:46.2]}
27... f5 {[%clk 0:01:28.6]} 28. Ng5+ {[%clk 0:00:30.3]} 28... Kf6 {[%clk
0:01:29.1]} 29. Rf7+ {[%clk 0:00:20.8]} 29... Kxg5 {[%clk 0:01:29.9]} 30. e7
{[%clk 0:00:22.3]} 30... Re8 {[%clk 0:01:28.6]} 0-1

[Event "*** Titled Tuesday Blitz"]
[Site "Chess.com"]
[Date "2020.02.04"]
[Round "1"]
[White "Atakishiyev04"]
[Black "mortngabriel"]
[Result "1-0"]
[WhiteElo "2791"]
[BlackElo "2407"]
[TimeControl "180+2"]
[EndTime "9:06:42 PST"]
[Termination "Atakishiyev04 won by resignation"]

1. d4 {[%clk 0:03:00.5]} 1... Nf6 {[%clk 0:02:59.7]} 2. c4 {[%clk 0:03:00.5]}
2... e6 {[%clk 0:03:00]} 3. Nf3 {[%clk 0:02:57.4]} 3... b6 {[%clk 0:03:01.6]} 4.
a3 {[%clk 0:02:57.8]} 4... Ba6 {[%clk 0:03:00.5]} 5. e3 {[%clk 0:02:51.5]} 5...
c5 {[%clk 0:02:58.3]} 6. Nc3 {[%clk 0:02:47.9]} 6... cxd4 {[%clk 0:02:09.1]} 7.
exd4 {[%clk 0:02:46.2]} 7... d5 {[%clk 0:02:02.5]} 8. Bg5 {[%clk 0:02:45.9]}
8... Be7 {[%clk 0:01:34.9]} 9. cxd5 {[%clk 0:02:30.4]} 9... Bxf1 {[%clk
0:01:28.6]} 10. Kxf1 {[%clk 0:02:31.4]} 10... Nxd5 {[%clk 0:01:26]} 11. Bxe7
{[%clk 0:02:27.1]} 11... Nxe7 {[%clk 0:01:16]} 12. g3 {[%clk 0:02:28]} 12... O-O
{[%clk 0:01:14.6]} 13. Kg2 {[%clk 0:02:28.4]} 13... Nbc6 {[%clk 0:01:16]} 14.
Qd3 {[%clk 0:02:27]} 14... Rc8 {[%clk 0:01:14.2]} 15. Rad1 {[%clk 0:02:25.9]}
15... Nd5 {[%clk 0:01:15.2]} 16. Ne4 {[%clk 0:02:17.9]} 16... Nf6 {[%clk
0:00:49.9]} 17. Rhe1 {[%clk 0:02:15]} 17... Nxe4 {[%clk 0:00:43.7]} 18. Qxe4
{[%clk 0:02:15.8]} 18... Ne7 {[%clk 0:00:42.2]} 19. h4 {[%clk 0:02:11.8]} 19...
Qd5 {[%clk 0:00:38.5]} 20. Qxd5 {[%clk 0:01:58]} 20... Nxd5 {[%clk 0:00:38.8]}
21. Rc1 {[%clk 0:01:59.6]} 21... g6 {[%clk 0:00:17.6]} 22. Ne5 {[%clk
0:01:58.9]} 22... Kg7 {[%clk 0:00:18.5]} 23. h5 {[%clk 0:01:58.5]} 23... Rfd8
{[%clk 0:00:14.8]} 24. h6+ {[%clk 0:01:58]} 24... Kf8 {[%clk 0:00:12]} 25. Kf3
{[%clk 0:01:54.5]} 25... f6 {[%clk 0:00:09.2]} 26. Nc6 {[%clk 0:01:54.3]} 26...
Rd6 {[%clk 0:00:08.1]} 27. Nxa7 {[%clk 0:01:54.6]} 27... Rxc1 {[%clk 0:00:06.3]}
28. Rxc1 {[%clk 0:01:56.5]} 28... Ne7 {[%clk 0:00:06.4]} 29. Nb5 {[%clk
0:01:54.9]} 29... Rd5 {[%clk 0:00:07.5]} 30. a4 {[%clk 0:01:56.5]} 30... Kf7
{[%clk 0:00:06.5]} 31. Rc7 {[%clk 0:01:56.4]} 31... Ke8 {[%clk 0:00:07]} 32. Rb7
{[%clk 0:01:56.1]} 32... Kd8 {[%clk 0:00:07.2]} 33. Rxb6 {[%clk 0:01:56.9]}
33... Kd7 {[%clk 0:00:06]} 34. Rb7+ {[%clk 0:01:56.7]} 34... Ke8 {[%clk
0:00:07.3]} 35. Nc7+ {[%clk 0:01:56.5]} 1-0

[Event "*** Titled Tuesday Blitz"]
[Site "Chess.com"]
[Date "2020.02.04"]
[Round "1"]
[White "miroslavsavic"]
[Black "DamianoLew95"]
[Result "0-1"]
[WhiteElo "2140"]
[BlackElo "2584"]
[TimeControl "180+2"]
[EndTime "9:06:52 PST"]
[Termination "DamianoLew95 won by resignation"]

1. d4 {[%clk 0:03:00.2]} 1... d5 {[%clk 0:02:59.9]} 2. c4 {[%clk 0:02:56.3]}
2... c6 {[%clk 0:02:59.8]} 3. Nf3 {[%clk 0:02:57.5]} 3... Nf6 {[%clk 0:03:00.3]}
4. Nc3 {[%clk 0:02:57.8]} 4... dxc4 {[%clk 0:03:01.2]} 5. a4 {[%clk 0:02:55.8]}
5... Bf5 {[%clk 0:03:01.4]} 6. e3 {[%clk 0:02:56.4]} 6... Nbd7 {[%clk
0:02:53.5]} 7. Bxc4 {[%clk 0:02:56.2]} 7... e6 {[%clk 0:02:54.3]} 8. O-O {[%clk
0:02:55.1]} 8... Bb4 {[%clk 0:02:54.9]} 9. Qe2 {[%clk 0:02:55.5]} 9... Bg6
{[%clk 0:02:53]} 10. Rd1 {[%clk 0:02:55.2]} 10... O-O {[%clk 0:02:53.4]} 11. Bd2
{[%clk 0:02:49.4]} 11... Re8 {[%clk 0:02:47.1]} 12. Na2 {[%clk 0:02:35.3]} 12...
Bxd2 {[%clk 0:02:42.2]} 13. Nxd2 {[%clk 0:02:32.7]} 13... Qe7 {[%clk 0:02:40.9]}
14. Nc3 {[%clk 0:02:31.5]} 14... e5 {[%clk 0:02:38.3]} 15. d5 {[%clk 0:02:31.1]}
15... cxd5 {[%clk 0:02:35.3]} 16. Nxd5 {[%clk 0:02:31]} 16... Nxd5 {[%clk
0:02:35.8]} 17. Bxd5 {[%clk 0:02:32.2]} 17... Nf6 {[%clk 0:02:36.5]} 18. Bc4
{[%clk 0:02:27.8]} 18... Bh5 {[%clk 0:02:36.2]} 19. f3 {[%clk 0:02:25.8]} 19...
e4 {[%clk 0:02:37.2]} 20. Re1 {[%clk 0:02:19.4]} 20... Rac8 {[%clk 0:02:28.3]}
21. Bb5 {[%clk 0:02:19.6]} 21... Red8 {[%clk 0:02:23.8]} 22. Rac1 {[%clk
0:02:17.2]} 22... Rxc1 {[%clk 0:02:17.2]} 23. Rxc1 {[%clk 0:02:16.4]} 23... h6
{[%clk 0:02:16.6]} 24. Qf2 {[%clk 0:02:12.7]} 24... exf3 {[%clk 0:02:15.2]} 25.
gxf3 {[%clk 0:02:08.9]} 25... Nd5 {[%clk 0:02:13]} 26. Ne4 {[%clk 0:02:05.5]}
26... Bg6 {[%clk 0:02:07.6]} 27. Bd3 {[%clk 0:02:04]} 27... Nf4 {[%clk
0:01:32.4]} 28. exf4 {[%clk 0:02:03.5]} 28... Rxd3 {[%clk 0:01:31.5]} 29. Ng3
{[%clk 0:02:01.1]} 29... Qd7 {[%clk 0:01:12.7]} 30. Rc2 {[%clk 0:01:47.3]} 30...
b6 {[%clk 0:01:07.6]} 31. Re2 {[%clk 0:01:42.5]} 31... Kh7 {[%clk 0:00:57.1]}
32. Kg2 {[%clk 0:01:42.2]} 32... Bf5 {[%clk 0:00:55.4]} 33. Nxf5 {[%clk
0:01:35]} 33... Qxf5 {[%clk 0:00:57.3]} 34. Re4 {[%clk 0:01:35]} 34... Rd6
{[%clk 0:00:52.8]} 35. Qd4 {[%clk 0:01:22.4]} 35... Rxd4 {[%clk 0:00:48.8]} 36.
Rxd4 {[%clk 0:01:20]} 36... Qc2+ {[%clk 0:00:49.3]} 0-1

[Event "*** Titled Tuesday Blitz"]
[Site "Chess.com"]
[Date "2020.02.04"]
[Round "1"]
[White "GMMatamoros"]
[Black "vinniethepooh"]
[Result "0-1"]
[WhiteElo "2420"]
[BlackElo "2801"]
[TimeControl "180+2"]
[EndTime "9:07:14 PST"]
[Termination "vinniethepooh won by resignation"]

1. Nf3 {[%clk 0:03:01.9]} 1... d5 {[%clk 0:03:00.6]} 2. g3 {[%clk 0:03:02.1]}
2... c6 {[%clk 0:02:56.6]} 3. Bg2 {[%clk 0:02:58.6]} 3... Bg4 {[%clk 0:02:57.3]}
4. d4 {[%clk 0:02:57.6]} 4... Nf6 {[%clk 0:02:56]} 5. c4 {[%clk 0:02:58.3]} 5...
e6 {[%clk 0:02:56.3]} 6. O-O {[%clk 0:02:51.8]} 6... Nbd7 {[%clk 0:02:53.3]} 7.
h3 {[%clk 0:02:51.4]} 7... Bf5 {[%clk 0:02:50.5]} 8. Nc3 {[%clk 0:02:47.3]} 8...
h6 {[%clk 0:02:50.8]} 9. Qb3 {[%clk 0:02:42.1]} 9... Qc8 {[%clk 0:02:18.9]} 10.
Bf4 {[%clk 0:02:34.2]} 10... a5 {[%clk 0:02:11.7]} 11. cxd5 {[%clk 0:02:28.8]}
11... exd5 {[%clk 0:02:07.7]} 12. Rac1 {[%clk 0:02:26.7]} 12... Be7 {[%clk
0:02:02.8]} 13. Ne5 {[%clk 0:02:19.2]} 13... Be6 {[%clk 0:01:58.6]} 14. Nxd7
{[%clk 0:02:03.4]} 14... Qxd7 {[%clk 0:01:49.4]} 15. Na4 {[%clk 0:02:04]} 15...
Ra6 {[%clk 0:01:25]} 16. g4 {[%clk 0:01:50.6]} 16... O-O {[%clk 0:01:19.2]} 17.
Nc5 {[%clk 0:01:48.1]} 17... Bxc5 {[%clk 0:01:18.3]} 18. dxc5 {[%clk 0:01:50]}
18... Re8 {[%clk 0:01:10.8]} 19. Rfd1 {[%clk 0:01:42.5]} 19... Qc8 {[%clk
0:00:40.2]} 20. Qg3 {[%clk 0:01:24.8]} 20... Ne4 {[%clk 0:00:36.9]} 21. Bxe4
{[%clk 0:01:16.6]} 21... dxe4 {[%clk 0:00:38.8]} 22. g5 {[%clk 0:01:17.9]} 22...
hxg5 {[%clk 0:00:25]} 23. Bxg5 {[%clk 0:01:09.3]} 23... Bxh3 {[%clk 0:00:25.9]}
24. Kh2 {[%clk 0:01:03.1]} 24... Qg4 {[%clk 0:00:19.4]} 25. Qxh3 {[%clk
0:00:48.8]} 25... Qxg5 {[%clk 0:00:20.4]} 26. Rd7 {[%clk 0:00:43.1]} 26... Qxc1
{[%clk 0:00:14.2]} 0-1

[Event "*** Titled Tuesday Blitz"]
[Site "Chess.com"]
[Date "2020.02.04"]
[Round "1"]
[White "Everyfishknows"]
[Black "Nikolakis2014"]
[Result "0-1"]
[WhiteElo "2324"]
[BlackElo "2704"]
[TimeControl "180+2"]
[EndTime "9:07:21 PST"]
[Termination "Nikolakis2014 won on time"]

1. Nf3 {[%clk 0:02:57]} 1... Nf6 {[%clk 0:02:59.5]} 2. c4 {[%clk 0:02:57]} 2...
e6 {[%clk 0:03:00.6]} 3. g3 {[%clk 0:02:57.2]} 3... d5 {[%clk 0:03:01.2]} 4. b3
{[%clk 0:02:56]} 4... Be7 {[%clk 0:03:01.5]} 5. Bg2 {[%clk 0:02:56.4]} 5... O-O
{[%clk 0:03:02.4]} 6. O-O {[%clk 0:02:57.2]} 6... c5 {[%clk 0:03:03.4]} 7. e3
{[%clk 0:02:56.6]} 7... Nc6 {[%clk 0:03:04.1]} 8. Bb2 {[%clk 0:02:57.4]} 8... b6
{[%clk 0:03:05.1]} 9. Nc3 {[%clk 0:02:57.6]} 9... Bb7 {[%clk 0:03:03.4]} 10.
cxd5 {[%clk 0:02:57.9]} 10... exd5 {[%clk 0:03:03.9]} 11. d4 {[%clk 0:02:58.6]}
11... Re8 {[%clk 0:02:50.7]} 12. Qd2 {[%clk 0:02:17.4]} 12... Ne4 {[%clk
0:02:44.7]} 13. Qd1 {[%clk 0:01:38]} 13... Bf6 {[%clk 0:02:43.6]} 14. Rc1 {[%clk
0:01:31.7]} 14... Ba6 {[%clk 0:02:32.5]} 15. Re1 {[%clk 0:01:25.7]} 15... Nb4
{[%clk 0:02:26.3]} 16. Bf1 {[%clk 0:01:05]} 16... Bxf1 {[%clk 0:02:18.7]} 17.
Kxf1 {[%clk 0:01:04.9]} 17... Nxc3 {[%clk 0:02:16.6]} 18. Rxc3 {[%clk
0:00:49.8]} 18... Nxa2 {[%clk 0:02:17.4]} 19. Rc2 {[%clk 0:00:51.1]} 19... Nb4
{[%clk 0:02:18.2]} 20. Rc1 {[%clk 0:00:50.9]} 20... Qd7 {[%clk 0:02:14.2]} 21.
Kg2 {[%clk 0:00:43.6]} 21... Rac8 {[%clk 0:02:10.8]} 22. Qd2 {[%clk 0:00:41.9]}
22... Qf5 {[%clk 0:02:03.6]} 23. Red1 {[%clk 0:00:19.2]} 23... h6 {[%clk
0:01:54.3]} 24. dxc5 {[%clk 0:00:18.1]} 24... Bxb2 {[%clk 0:01:54.1]} 25. Qxb2
{[%clk 0:00:19.3]} 25... bxc5 {[%clk 0:01:55.3]} 26. Qe2 {[%clk 0:00:11.9]}
26... d4 {[%clk 0:01:46.8]} 27. Qd2 {[%clk 0:00:08.4]} 27... dxe3 {[%clk
0:01:42.1]} 28. fxe3 {[%clk 0:00:10.3]} 28... Qe4 {[%clk 0:01:43.3]} 29. Kf2
{[%clk 0:00:11]} 29... Rc6 {[%clk 0:01:40.7]} 30. Rc4 {[%clk 0:00:11.6]} 30...
Qe7 {[%clk 0:01:36.7]} 31. Re1 {[%clk 0:00:06.6]} 31... Rf6 {[%clk 0:01:35.4]}
32. Kg2 {[%clk 0:00:07.3]} 32... Rd8 {[%clk 0:01:26.7]} 33. Qc3 {[%clk
0:00:03.4]} 33... Nd3 {[%clk 0:01:23.3]} 34. Rf1 {[%clk 0:00:02.4]} 34... Qxe3
{[%clk 0:01:21]} 0-1

[Event "*** Titled Tuesday Blitz"]
[Site "Chess.com"]
[Date "2020.02.04"]
[Round "1"]
[White "Abund"]
[Black "NemtsevIgor"]
[Result "1-0"]
[WhiteElo "2767"]
[BlackElo "2404"]
[TimeControl "180+2"]
[EndTime "9:07:33 PST"]
[Termination "Abund won on time"]

1. e4 {[%clk 0:02:59.7]} 1... c6 {[%clk 0:03:00.5]} 2. d4 {[%clk 0:02:58.4]}
2... d5 {[%clk 0:03:00.1]} 3. exd5 {[%clk 0:02:58]} 3... cxd5 {[%clk 0:03:00.9]}
4. Bd3 {[%clk 0:02:58.1]} 4... Nc6 {[%clk 0:03:01.4]} 5. c3 {[%clk 0:02:58.6]}
5... Nf6 {[%clk 0:03:02]} 6. Nf3 {[%clk 0:02:59.1]} 6... Bg4 {[%clk 0:03:02.8]}
7. h3 {[%clk 0:02:56.5]} 7... Bh5 {[%clk 0:03:02.8]} 8. O-O {[%clk 0:02:57.1]}
8... e6 {[%clk 0:03:03.2]} 9. Bf4 {[%clk 0:02:52.6]} 9... Bd6 {[%clk 0:03:02.5]}
10. Bxd6 {[%clk 0:02:52]} 10... Qxd6 {[%clk 0:03:03.6]} 11. Nbd2 {[%clk
0:02:52.9]} 11... O-O {[%clk 0:03:04.1]} 12. Re1 {[%clk 0:02:53.9]} 12... Qc7
{[%clk 0:03:05]} 13. Nf1 {[%clk 0:02:44.8]} 13... Bg6 {[%clk 0:03:04.9]} 14. Ng3
{[%clk 0:02:38.4]} 14... Bxd3 {[%clk 0:03:04.8]} 15. Qxd3 {[%clk 0:02:39.1]}
15... Rab8 {[%clk 0:03:05.6]} 16. Rec1 {[%clk 0:02:05.4]} 16... b5 {[%clk
0:03:05.3]} 17. b4 {[%clk 0:02:05.3]} 17... a5 {[%clk 0:03:04.7]} 18. a4 {[%clk
0:02:00.3]} 18... bxa4 {[%clk 0:02:23.8]} 19. b5 {[%clk 0:01:32.4]} 19... Na7
{[%clk 0:02:24.5]} 20. c4 {[%clk 0:01:20.6]} 20... dxc4 {[%clk 0:02:20.7]} 21.
Rxc4 {[%clk 0:01:21.1]} 21... Qd8 {[%clk 0:01:50.9]} 22. Rc5 {[%clk 0:01:15.3]}
22... Nd5 {[%clk 0:01:41.8]} 23. Rxa4 {[%clk 0:01:13.4]} 23... Nb6 {[%clk
0:01:15.5]} 24. Rxa5 {[%clk 0:01:11.4]} 24... Nd7 {[%clk 0:01:16.4]} 25. Rh5
{[%clk 0:01:01.5]} 25... g6 {[%clk 0:01:02.4]} 26. Rxa7 {[%clk 0:01:02]} 26...
gxh5 {[%clk 0:00:57.3]} 27. Nxh5 {[%clk 0:01:03]} 27... Nb6 {[%clk 0:00:36.8]}
28. Qe3 {[%clk 0:00:46.3]} 28... Kh8 {[%clk 0:00:09.7]} 29. Qh6 {[%clk
0:00:43.4]} 29... Rg8 {[%clk 0:00:05.4]} 30. Rxf7 {[%clk 0:00:43.3]} 1-0